{"text_format":"1","workbook":"xlsx","n_sheets":7,"sheets":["Vejledning","Lærere Ny Løn","Lærere OK ansatte anc.løn","Lærere Tjenestemænd","Bh. kl. ledere Ny Løn ","Bh. kl. ledere Anc. løn","satser"],"not_rendered":{"charts":0,"images":0,"macros":1,"external_links":0,"defined_names":0,"comments":6,"pivot_tables":0},"unopened":[],"bounds":{"document_bytes":16777216,"sheet_cells":100000,"rows_first":2000,"rows_last":500,"rows_between":2000,"halvings":0,"cell_chars":16384,"cell_head_chars":4096},"cells_cut":0,"cells_raw":0,"read":"whole","date_system":"1900"}

{"sheet":"Vejledning","index":0,"n_rows":33,"n_cols":1,"rows_kept":33,"cut":false,"hidden":false,"merged":[]}
["Vejledning til regneark, lønberegning."]
[]
["Regnearket anvendes til kontrol af lønsedler . Man skal bruge sin lønseddel og opgaveoversigten"]
["Regnearket kan anvendes af lærere og børnehaveklasseledere ansat på folkeskoler i Odense."]
["Medlemmer ansat andre steder kan få hjælp til at kontrollere deres lønsedler i Odense Lærerforening"]
[]
[]
["Find det relevante ark i regnearket"]
["(Lærere Ny Løn, Lærere OK ansatte anc. Løn, Lærere tjenestemænd,"]
["Børnehaveklasseledere Ny Løn, Børnehaveklasseledere anc. Løn)"]
[]
[]
["Der kan kun indtastes i de gule felter!"]
[]
["Beskæftigelsesgrad indtastes med ugentligt timetal (fremgår af lønsedlen)"]
["Grundløn fremkommer automatisk, tillæg for anciennitet skal indtastes med 1 ved relevant anciennitetstillæg (fremgår af lønsedlen)"]
["Forhåndsaftalt funktions- og kvalifikationsløn indtastes med 1 ud for funktionen (kvalifikationen)"]
["Ved delt funktion anvendes decimaltal."]
["Odensetillæg fremgår automatisk"]
[]
["Skoleaftaler og andet, der ikke er nævnt i regnearket indtastes med det månedlige beløb, der fremgår af lønsedlen."]
["Der kan evt. indtastes navn på disse tillæg."]
[]
["Undervisningstillæg, specialundervisningstillæg m.m. indtastes i de relevante felter med det årlige undervisningstimetal"]
["Timetallet fremgår af opgaveoversigten"]
[]
["Månedslønnen fremkommer automatisk og er sammenlignelig med lønsedlen"]
[]
["Bemærk: Der kan fremkomme øreafvigelser p.g.a. afrunding."]
[]
["Arbejdstidsbestemte tillæg udbetales konkret og fremgår ikke af lønberegneren"]
[]
["Kommentarer eller rettelser er velkomne, kontakt Bo Tryggedsson, Odense Lærerforening."]

{"sheet":"Lærere Ny Løn","index":1,"n_rows":46,"n_cols":3,"rows_kept":46,"cut":false,"hidden":false,"merged":[[1,0,2,2],[0,0,0,1]]}
["Lønberegning niveau",null,{"$f":"satser!F1","v":"01.04.2023"}]
["Lærere Ny løn"]
[]
[]
["Navn:"]
["Måned"]
[]
["Beskæftigelsesgrad (indsæt ugentligt timetal)",37]
[null,null,"Månedsløn"]
["Grundløn trin 31",31,{"$f":"satser!B11*B8/37","v":30140.5}]
["Grundlønstillæg - lærer",null,{"$f":"IF(B14=1,\"\",satser!I3*B8/37)","v":374.57600000000002}]
["Lærere på grundløn",null,{"$f":"IF((B12+B13+B14)>1,\"Fejl: kun et tillæg\",IF(B12=1,satser!D12*B8/37,\"\"))","v":""}]
["Anciennitetstillæg (trin 31-35)",null,{"$f":"IF((B12+B13+B14)>1,\"Fejl: kun et tillæg\",IF(B13=1,satser!D15*B8/37,\"\"))","v":""}]
["Anciennitetstillæg (trin 31-40)",null,{"$f":"IF((B12+B13+B14)>1,\"Fejl: kun et tillæg\",IF(B14=1,satser!D20*B8/37,\"\"))","v":""}]
["Anciennitetstillæg - lærer",null,{"$f":"IF(AND(B15=1,B14=1),satser!I4*B8/37,\"\")","v":""}]
["Undervisertillæg",null,{"$f":"satser!I9*B8/37","v":1623.1626666666668}]
[]
["Funktions- og kvalifikationsløn: Tast 1 i det gule felt, hvis omfattet:"]
["Nyt Odense tillæg",null,{"$f":"satser!I20*B8/37","v":1385.93}]
["Kl. lærer/bh.kl.leder >27",null,{"$f":"(IF(B20>1,\"Fejl:kun et tillæg\",IF(B20>0,B20*satser!I21,\"\")))","v":""}]
["Kontaktperson til elevråd",null,{"$f":"(IF(B21>1,\"Fejl:kun et tillæg\",IF(B21>0,B21*satser!I22,\"\")))","v":""}]
["Obs-klasser",null,{"$f":"(IF(B22>1,\"Fejl:kun et tillæg\",IF(B22>0,B22*satser!I23*B8/37,\"\")))","v":""}]
["Flere/skiftende arbejdssteder",null,{"$f":"(IF(B23>1,\"Fejl:kun et tillæg\",IF(B23>0,B23*satser!I24*B8/37,\"\")))","v":""}]
["TR uden forhandlingskompetence",null,{"$f":"(IF(B24+B25>1,\"Fejl:kun et tillæg\",IF(B24>0,B24*satser!I25,\"\")))","v":""}]
["TR uden forhandlingskompetence > 35",null,{"$f":"(IF(B24+B25>1,\"Fejl:kun et tillæg\",IF(B25>0,B25*satser!I26,\"\")))","v":""}]
["AMR funktion",null,{"$f":"(IF(B26>1,\"Fejl:kun et tillæg\",IF(B26>0,B26*satser!I27,\"\")))","v":""}]
["Spec-uv skolebørn",null,{"$f":"(IF(B27>1,\"Fejl:kun et tillæg\",IF(B27>0,B27*satser!I28,\"\")))","v":""}]
[]
["Specialv./erfaring fra Vollsmose skoler",null,{"$f":"(IF(B29>1,\"Fejl:kun et tillæg\",IF(B29>0,B29*satser!I30*B8/37,\"\")))","v":""}]
["Pæd. Diplomudd./Masterudd.",null,{"$f":"(IF(B30>1,\"Fejl:kun et tillæg\",IF(B30>0,B30*satser!I31*B8/37,\"\")))","v":""}]
[]
["Undervisnings- og specialundervisningstillæg m.m. Indsæt tal fra opgaveoversigten i de gule felter"]
["I alt undervisning "]
["uv-tillæg > 750",{"$f":"(IF((B33/B8*37)>750,((B33/B8*37)-750)*B8/37,0))/12","v":0},{"$f":"IF(B34>0,B34*satser!I35,\"\")","v":""}]
["uv-tillæg > 780",{"$f":"(IF((B33/B8*37)>780,((B33/B8*37)-780)*B8/37,0))/12","v":0},{"$f":"IF(B35>0,B35*satser!I36,\"\")","v":""}]
["tale/høre tillæg",null,{"$f":"IF(B36>0,(B36/12)*satser!I37,\"\")","v":""}]
["Spec-skole uv-tillæg",null,{"$f":"IF(B37>0,(B37/12)*satser!I38,\"\")","v":""}]
[]
["Andre tillæg (fx skoleaftaler) Indtast beløb fra lønseddel"]
[]
[]
[]
[]
[]
[]
["Fast løn i alt",null,{"$f":"SUM(C10:C45)","v":33524.168666666665}]

{"sheet":"Lærere OK ansatte anc.løn","index":2,"n_rows":46,"n_cols":3,"rows_kept":46,"cut":false,"hidden":false,"merged":[[1,0,2,2],[0,0,0,1]]}
["Lønberegning niveau ",null,{"$f":"satser!F1","v":"01.04.2023"}]
["Lærere OK ansatte anc. Løn"]
[]
[]
["Navn: "]
["Måned"]
[]
["Beskæftigelsesgrad (indsæt ugentligt timetal)",37]
[]
[null,null,"Månedsløn"]
["Grundløn trin 43",43,{"$f":"satser!B23*B8/37","v":36939.416666666664}]
["Stillingstillæg - lærer",null,{"$f":"satser!I5*B8/37","v":1623.1626666666668}]
["Undervisertillæg",null,{"$f":"satser!I10*B8/37","v":686.72266666666667}]
[]
[]
[]
[]
["Funktions- og kvalifikationsløn: Tast 1 i det gule felt, hvis omfattet:"]
["Nyt Odense tillæg",null,{"$f":"satser!I20*B8/37","v":1385.93}]
["Kl. lærer/bh.kl.leder >27",null,{"$f":"(IF(B20>1,\"Fejl:kun et tillæg\",IF(B20>0,B20*satser!J21,\"\")))","v":""}]
["Kontaktperson til elevråd",null,{"$f":"(IF(B21>1,\"Fejl:kun et tillæg\",IF(B21>0,B21*satser!J22,\"\")))","v":""}]
["Obs-klasser",null,{"$f":"(IF(B22>1,\"Fejl:kun et tillæg\",IF(B22>0,B22*satser!J23*B8/37,\"\")))","v":""}]
["Flere/skiftende arbejdssteder",null,{"$f":"(IF(B23>1,\"Fejl:kun et tillæg\",IF(B23>0,B23*satser!J24*B8/37,\"\")))","v":""}]
["TR uden forhandlingskompetence",null,{"$f":"(IF(B24+B25>1,\"Fejl:kun et tillæg\",IF(B24>0,B24*satser!J25,\"\")))","v":""}]
["TR uden forhandlingskompetence > 35",null,{"$f":"(IF(B24+B25>1,\"Fejl:kun et tillæg\",IF(B25>0,B25*satser!J26,\"\")))","v":""}]
["AMR funktion",null,{"$f":"(IF(B26>1,\"Fejl:kun et tillæg\",IF(B26>0,B26*satser!J27,\"\")))","v":""}]
["Spec-uv skolebørn",null,{"$f":"(IF(B27>1,\"Fejl:kun et tillæg\",IF(B27>0,B27*satser!J28,\"\")))","v":""}]
[]
["Specialv./erfaring fra Vollsmose skoler",null,{"$f":"(IF(B29>1,\"Fejl:kun et tillæg\",IF(B29>0,B29*satser!J30*B8/37,\"\")))","v":""}]
["Pæd. Diplomudd./Masterudd.",null,{"$f":"(IF(B30>1,\"Fejl:kun et tillæg\",IF(B30>0,B30*satser!J31*B8/37,\"\")))","v":""}]
[]
["Undervisnings- og specialundervisningstillæg m.m. Indsæt tal fra opgaveoversigten i de gule felter"]
["I alt undervisning "]
["uv-tillæg > 750",{"$f":"(IF((B33/B8*37)>750,((B33/B8*37)-750)*B8/37,0))/12","v":0},{"$f":"IF(B34>0,B34*satser!J35,\"\")","v":""}]
["uv-tillæg > 780",{"$f":"(IF((B33/B8*37)>780,((B33/B8*37)-780)*B8/37,0))/12","v":0},{"$f":"IF(B35>0,B35*satser!J36,\"\")","v":""}]
["tale/høre tillæg",null,{"$f":"IF(B36>0,(B36/12)*satser!J37,\"\")","v":""}]
["Spec-skole uv-tillæg",null,{"$f":"IF(B37>0,(B37/12)*satser!J38,\"\")","v":""}]
[]
["Andre tillæg (fx skoleaftaler) Indtast beløb fra lønseddel"]
[]
[]
[]
[]
[" "]
[]
["Fast løn i alt",null,{"$f":"SUM(C10:C45)","v":40635.231999999996}]

{"sheet":"Lærere Tjenestemænd","index":3,"n_rows":46,"n_cols":3,"rows_kept":46,"cut":false,"hidden":false,"merged":[[1,0,2,2],[0,0,0,1]]}
["Lønberegning niveau",null,{"$f":"satser!F1","v":"01.04.2023"}]
["Lærere Tjenestemænd"]
[]
[]
["Navn: "]
["Måned"]
[]
["Beskæftigelsesgrad (indsæt ugentligt timetal)",37]
[]
[null,null,"Månedsløn"]
["Grundløn trin 43",43,{"$f":"satser!B23*B8/37","v":36939.416666666664}]
["Stillingstillæg - lærer",null,{"$f":"satser!I5*B8/37","v":1623.1626666666668}]
["Pension - stillingstillæg lærer ",null,{"$f":"IF(B13=1,satser!I6,\"\")","v":""}]
["Undervisertillæg",null,{"$f":"satser!I10*B8/37","v":686.72266666666667}]
[]
[]
[]
["Funktions- og kvalifikationsløn: Tast 1 i det gule felt, hvis omfattet:"]
["Nyt Odense tillæg",null,{"$f":"satser!I20*B8/37","v":1385.93}]
["Kl. lærer/bh.kl.leder >27",null,{"$f":"(IF(B20>1,\"Fejl:kun et tillæg\",IF(B20>0,B20*satser!J21,\"\")))","v":""}]
["Kontaktperson til elevråd",null,{"$f":"(IF(B21>1,\"Fejl:kun et tillæg\",IF(B21>0,B21*satser!J22,\"\")))","v":""}]
["Obs-klasser",null,{"$f":"(IF(B22>1,\"Fejl:kun et tillæg\",IF(B22>0,B22*satser!J23*B8/37,\"\")))","v":""}]
["Flere/skiftende arbejdssteder",null,{"$f":"(IF(B23>1,\"Fejl:kun et tillæg\",IF(B23>0,B23*satser!J24*B8/37,\"\")))","v":""}]
["TR uden forhandlingskompetence",null,{"$f":"(IF(B24+B25>1,\"Fejl:kun et tillæg\",IF(B24>0,B24*satser!J25,\"\")))","v":""}]
["TR uden forhandlingskompetence > 35",null,{"$f":"(IF(B24+B25>1,\"Fejl:kun et tillæg\",IF(B25>0,B25*satser!J26,\"\")))","v":""}]
["AMR funktion",null,{"$f":"(IF(B26>1,\"Fejl:kun et tillæg\",IF(B26>0,B26*satser!J27,\"\")))","v":""}]
["Spec-uv skolebørn",null,{"$f":"(IF(B27>1,\"Fejl:kun et tillæg\",IF(B27>0,B27*satser!J28,\"\")))","v":""}]
[]
["Specialv./erfaring fra Vollsmose skoler",null,{"$f":"(IF(B29>1,\"Fejl:kun et tillæg\",IF(B29>0,B29*satser!J30*B8/37,\"\")))","v":""}]
["Pæd. Diplomudd./Masterudd.",null,{"$f":"(IF(B30>1,\"Fejl:kun et tillæg\",IF(B30>0,B30*satser!D24*B8/37,\"\")))","v":""}]
[]
["Undervisnings- og specialundervisningstillæg m.m. Indsæt tal fra opgaveoversigten i de gule felter"]
["I alt undervisning "]
["uv-tillæg > 750",{"$f":"(IF((B33/B8*37)>750,((B33/B8*37)-750)*B8/37,0))/12","v":0},{"$f":"IF(B34>0,B34*satser!J35,\"\")","v":""}]
["uv-tillæg > 780",{"$f":"(IF((B33/B8*37)>780,((B33/B8*37)-780)*B8/37,0))/12","v":0},{"$f":"IF(B35>0,B35*satser!J36,\"\")","v":""}]
["tale/høre tillæg",null,{"$f":"IF(B36>0,(B36/12)*satser!J37,\"\")","v":""}]
["Spec-skole uv-tillæg",null,{"$f":"IF(B37>0,(B37/12)*satser!J38,\"\")","v":""}]
[]
["Andre tillæg (fx skoleaftaler) Indtast beløb fra lønseddel"]
[]
[]
[]
[]
[" "]
[]
["Fast løn i alt",null,{"$f":"SUM(C10:C45)","v":40635.231999999996}]

{"sheet":"Bh. kl. ledere Ny Løn ","index":4,"n_rows":46,"n_cols":3,"rows_kept":46,"cut":false,"hidden":false,"merged":[[1,0,2,2],[0,0,0,1]]}
["Lønberegning niveau",null,{"$f":"satser!F1","v":"01.04.2023"}]
["Børnehaveklasseledere Ny løn"]
[]
[]
["Navn: "]
["Måned"]
[]
["Beskæftigelsesgrad (indsæt ugentligt timetal)",37]
[null,null,"Månedsløn"]
["Grundløn trin 28",28,{"$f":"satser!B8*B8/37","v":28741.5}]
["Grundlønstillæg - børnehaveklasseleder",null,{"$f":"IF(B14=1,satser!I8*B8/37,IF(B15=1,satser!I8*B8/37,satser!I7*B8/37))","v":499.43466666666671}]
[]
["Anciennitetstillæg (trin 28-31)",null,{"$f":"IF((B13+B14+B15)>1,\"Fejl: kun et tillæg\",IF(B13=1,satser!D11*B8/37,\"\"))","v":""}]
["Anciennitetstillæg (trin 28-33)",null,{"$f":"IF((B13+B14+B15)>1,\"Fejl: kun et tillæg\",IF(B14=1,satser!D13*B8/37,\"\"))","v":""}]
["Anciennitetstillæg (trin 28-37)",null,{"$f":"IF((B13+B14+B15)>1,\"Fejl: kun et tillæg\",IF(B15=1,satser!D18*B8/37,\"\"))","v":""}]
["Undervisertillæg",null,{"$f":"satser!I11*B8/37","v":1922.8234666666665}]
[]
["Funktions- og kvalifikationsløn: Tast 1 i det gule felt, hvis omfattet:"]
["Nyt Odense tillæg",null,{"$f":"satser!I20*B8/37","v":1385.93}]
["Kl. lærer/bh.kl.leder >27",null,{"$f":"(IF(B20>1,\"Fejl:kun et tillæg\",IF(B20>0,B20*satser!I21,\"\")))","v":""}]
["Kontaktperson til elevråd",null,{"$f":"(IF(B21>1,\"Fejl:kun et tillæg\",IF(B21>0,B21*satser!I22,\"\")))","v":""}]
["Obs-klasser",null,{"$f":"(IF(B22>1,\"Fejl:kun et tillæg\",IF(B22>0,B22*satser!I23*B8/37,\"\")))","v":""}]
["Flere/skiftende arbejdssteder",null,{"$f":"(IF(B23>1,\"Fejl:kun et tillæg\",IF(B23>0,B23*satser!I24*B8/37,\"\")))","v":""}]
["TR uden forhandlingskompetence",null,{"$f":"(IF(B24+B25>1,\"Fejl:kun et tillæg\",IF(B24>0,B24*satser!I25,\"\")))","v":""}]
["TR uden forhandlingskompetence > 35",null,{"$f":"(IF(B24+B25>1,\"Fejl:kun et tillæg\",IF(B25>0,B25*satser!I26,\"\")))","v":""}]
["AMR funktion",null,{"$f":"(IF(B26>1,\"Fejl:kun et tillæg\",IF(B26>0,B26*satser!I27,\"\")))","v":""}]
["Spec-uv skolebørn",null,{"$f":"(IF(B27>1,\"Fejl:kun et tillæg\",IF(B27>0,B27*satser!I28,\"\")))","v":""}]
[]
["Specialv./erfaring fra Vollsmose skoler",null,{"$f":"(IF(B29>1,\"Fejl:kun et tillæg\",IF(B29>0,B29*satser!I30*B8/37,\"\")))","v":""}]
["Pæd. Diplomudd./Masterudd.",null,{"$f":"(IF(B30>1,\"Fejl:kun et tillæg\",IF(B30>0,B30*satser!I31*B8/37,\"\")))","v":""}]
[]
["Undervisnings- og specialundervisningstillæg m.m. Indsæt tal fra opgaveoversigten i de gule felter"]
["I alt undervisning "]
["uv-tillæg > 836",{"$f":"(IF((B33/B8*37)>835,((B33/B8*37)-835)*B8/37,0))/12","v":0},{"$f":"IF(B34>0,B34*satser!I35,\"\")","v":""}]
["tale/høre tillæg",null,{"$f":"IF(B35>0,(B35/12)*satser!I37,\"\")","v":""}]
["Spec-skole uv-tillæg",null,{"$f":"IF(B36>0,(B36/12)*satser!I38,\"\")","v":""}]
["to-sprogede elever",null,{"$f":"IF(B37>0,(B37/12)*satser!I40,\"\")","v":""}]
[]
["Andre tillæg (fx skoleaftaler) Indtast beløb fra lønseddel"]
[]
[]
[]
[]
[" "]
[]
["Fast løn i alt",null,{"$f":"SUM(C10:C45)","v":32549.688133333333}]

{"sheet":"Bh. kl. ledere Anc. løn","index":5,"n_rows":47,"n_cols":3,"rows_kept":47,"cut":false,"hidden":false,"merged":[[1,0,2,2],[0,0,0,1]]}
["Lønberegning niveau",null,{"$f":"satser!F1","v":"01.04.2023"}]
["Børnehaveklasseledere anc. Løn"]
[]
[]
["Navn: "]
["Måned"]
[]
["Beskæftigelsesgrad (indsæt ugentligt timetal)",37]
[null,null,"Månedsløn"]
["Grundløn trin 36",36,{"$f":"satser!B16*B8/37","v":32671.166666666668}]
["Trintillæg",null,{"$f":"satser!I13*B8/37","v":824.06720000000007}]
["Undervisertillæg",null,{"$f":"satser!I12*B8/37","v":1922.8234666666665}]
[]
[]
[]
[]
[]
[]
["Funktions- og kvalifikationsløn: Tast 1 i det gule felt, hvis omfattet:"]
["Nyt Odense tillæg",null,{"$f":"satser!I20*B8/37","v":1385.93}]
["Kl. lærer/bh.kl.leder >27",null,{"$f":"(IF(B21>1,\"Fejl:kun et tillæg\",IF(B21>0,B21*satser!J21,\"\")))","v":""}]
["Kontaktperson til elevråd",null,{"$f":"(IF(B22>1,\"Fejl:kun et tillæg\",IF(B22>0,B22*satser!J22,\"\")))","v":""}]
["Obs-klasser",null,{"$f":"(IF(B23>1,\"Fejl:kun et tillæg\",IF(B23>0,B23*satser!J23*B8/37,\"\")))","v":""}]
["Flere/skiftende arbejdssteder",null,{"$f":"(IF(B24>1,\"Fejl:kun et tillæg\",IF(B24>0,B24*satser!J24*B8/37,\"\")))","v":""}]
["TR uden forhandlingskompetence",null,{"$f":"(IF(B25+B26>1,\"Fejl:kun et tillæg\",IF(B25>0,B25*satser!J25,\"\")))","v":""}]
["TR uden forhandlingskompetence > 35",null,{"$f":"(IF(B25+B26>1,\"Fejl:kun et tillæg\",IF(B26>0,B26*satser!J26,\"\")))","v":""}]
["AMR funktion",null,{"$f":"(IF(B27>1,\"Fejl:kun et tillæg\",IF(B27>0,B27*satser!J27,\"\")))","v":""}]
["Spec-uv skolebørn",null,{"$f":"(IF(B28>1,\"Fejl:kun et tillæg\",IF(B28>0,B28*satser!J28,\"\")))","v":""}]
[]
["Specialv./erfaring fra Vollsmose skoler",null,{"$f":"(IF(B30>1,\"Fejl:kun et tillæg\",IF(B30>0,B30*satser!J30*B8/37,\"\")))","v":""}]
["Pæd. Diplomudd./Masterudd.",null,{"$f":"(IF(B31>1,\"Fejl:kun et tillæg\",IF(B31>0,B31*satser!J31*B8/37,\"\")))","v":""}]
[]
["Undervisnings- og specialundervisningstillæg m.m. Indsæt tal fra opgaveoversigten i de gule felter"]
["I alt undervisning "]
["uv-tillæg > 836",{"$f":"(IF((B34/B8*37)>835,((B34/B8*37)-835)*B8/37,0))/12","v":0},{"$f":"IF(B35>0,B35*satser!J35,\"\")","v":""}]
["tale/høre tillæg",null,{"$f":"IF(B36>0,(B36/12)*satser!J37,\"\")","v":""}]
["Spec-skole uv-tillæg",null,{"$f":"IF(B37>0,(B37/12)*satser!J38,\"\")","v":""}]
["to-sprogede elever",null,{"$f":"IF(B38>0,(B38/12)*satser!J40,\"\")","v":""}]
[]
["Andre tillæg (fx skoleaftaler) Indtast beløb fra lønseddel"]
[]
[]
[]
[]
[" "]
[]
["Fast løn i alt",null,{"$f":"SUM(C10:C46)","v":36803.987333333338}]

{"sheet":"satser","index":6,"n_rows":40,"n_cols":11,"rows_kept":40,"cut":false,"hidden":false,"merged":[[0,0,0,4],[18,10,18,11],[17,6,17,7],[1,6,1,7],[2,2,2,3],[6,2,6,3]]}
["Satser pr. ",null,null,null,null,"01.04.2023"]
[null,null,null,null,null,null,"Grundbeløb",null,"Månedligt beløb pr.",{"$f":"F1","v":"01.04.2023"}]
[null,null,null,null,null,"Grundlønstillæg - lærer",3000,null,{"$f":"G3*C27/12","v":374.57600000000002}]
[null,null,null,null,null,"Anciennitetstillæg - lærer",10000,null,{"$f":"G4*C27/12","v":1248.5866666666668}]
[null,null,null,null,null,"Stillingstillæg - lærer",null,13000,{"$f":"H5*C27/12","v":1623.1626666666668}]
[null,null,null,null,null,"Pension - stillingstilæg lærer",null,2202,{"$f":"H6*C27/12","v":274.938784},"Beløbet er 17,3% af 13.000 fratrukket særlig ferie"]
["Løntrin ","Pr. måned","Anciennitetstillæg",null,null,"Grundlønstillæg - børnehaveklasseleder under 8 år",4000,null,{"$f":"G7*C27/12","v":499.43466666666671}]
[28,28741.5,null,null,null,"Grundlønstillæg - børnehaveklasseleder over 8 år",2000,null,{"$f":"G8*C27/12","v":249.71733333333336}]
[29,29198.416666666668,null,null,null,"Undervisertillæg, lærere Ny Løn",13000,null,{"$f":"G9*C27/12","v":1623.1626666666668}]
[30,29664.416666666668,null,null,null,"Undervisertillæg, lærere Anciennitetsløn",5500,null,{"$f":"G10*C27/12","v":686.72266666666667}]
[31,30140.5,"28 . 31",{"$f":"B11-B8","v":1399},null,"Undervisertillæg, børehaveklasseledere, Ny Løn",15400,null,{"$f":"G11*C27/12","v":1922.8234666666667}]
[32,30626.166666666668,"31 - 32",{"$f":"B12-B11","v":485.66666666666788},null,"Undervisertillæg, børehaveklasseledere, Anciennitetsløn",15400,null,{"$f":"G12*C27/12","v":1922.8234666666667}]
[33,31121.75,"28 - 33",{"$f":"B13-B8","v":2380.25},null,"Trintillæg børnehaveklasseledere",6600,null,{"$f":"G13*C27/12","v":824.06720000000007}]
[34,31628.083333333332]
[35,32144.083333333332,"31 - 35",{"$f":"B15-B11","v":2003.5833333333321}]
[36,32671.166666666668]
[37,33208.5,"36 - 37",{"$f":"B17-B16","v":537.33333333333212}]
[38,33781.75,"28-37",{"$f":"B17-B8","v":4467},null,null,"Grundbeløb",null,"Månedligt beløb pr.",{"$f":"F1","v":"01.04.2023"}]
[39,34352.75,null,null,null,"Funktions- og kvalifikationsløn: ","Ny Løn","Anciennitetsløn","Ny Løn","Anciennitetsløn"]
[40,34935.583333333336,"31 - 40",{"$f":"B20-B11","v":4795.0833333333358},null,"Nyt Odense tillæg",11100,11100,{"$f":"ROUND(G20*$C$27/12,2)","v":1385.93},{"$f":"ROUND(H20*$C$27/12,2)","v":1385.93}]
[41,35530.083333333336,null,null,null,"Kl. lærer/bh.kl.leder >27",4200,3100,{"$f":"ROUND(G21*$C$27/12,2)","v":524.41},387.06]
[42,36136.333333333336,null,null,null,"Kontaktperson til elevråd",3100,3100,387.06,387.06]
[43,36939.416666666664,null,null,null,"Obs-klasser",4200,4200,524.41,524.41]
[44,37764.75,"43 - 44",{"$f":"B24-B23","v":825.33333333333576},null,"Flere/skiftende arbejdssteder",3100,3100,387.06,387.06]
[null,null,null,null,null,"TR uden forhandlingskompetence",5350,5350,667.99,667.99]
[null,null,null,null,null,"TR uden forhandlingskompetence > 35",6000,6000,749.15,749.15]
["Reguleringsfaktor:",null,1.4983040000000001,null,null,"AMR funktion",5350,5350,667.99,667.99]
[null,null,null,null,null,"Spec-uv skolebørn",18600,18600,2322.37,2322.37]
[]
[null,null,null,null,null,"Specialv./erfaring fra Vollsmose skoler",3600,3600,{"$f":"ROUND(G30*$C$27/12,2)","v":449.49},{"$f":"ROUND(H30*$C$27/12,2)","v":449.49}]
[null,null,null,null,null,"Pæd. Diplomudd./Masterudd.",7500,7500,{"$f":"ROUND(G31*$C$27/12,2)","v":936.44},{"$f":"ROUND(H31*$C$27/12,2)","v":936.44},"Tjenestemænd dog 1 trin"]
[]
[]
[null,null,null,null,null,"Undervisnings- og specialundervisningstillæg m.m. "]
[null,null,null,null,null,"uv-tillæg > 750",90,90,{"$f":"ROUND(G35*$C$27,2)","v":134.85},134.85]
[null,null,null,null,null,"uv-tillæg > 780",90,90,134.85,{"$f":"ROUND(H36*$C$27,2)","v":134.85}]
[null,null,null,null,null,"tale/høre tillæg",25.84,25.84,38.72,38.72]
[null,null,null,null,null,"Spec-skole uv-tillæg",18.920000000000002,18.920000000000002,28.35,28.35]
[]
[null,null,null,null,null,"to-sprogede elever",18.920000000000002,18.920000000000002,{"$f":"ROUND(G40*$C$27,2)","v":28.35},{"$f":"ROUND(H40*$C$27,2)","v":28.35}]